Cogmind - Beta 12 @@@ ROGUE MODE // 2023.09.10 @ 16:44:59 Player: morimori Result: Destroyed by G-47 Trooper with Particle Gun Performance ------------- Evolutions (3) 1500 Regions Visited (5) 1000 Robots Destroyed (95) 475 Value Destroyed (2607) 2607 Prototype IDs (9) 180 Alien Tech Used (0) 0 Bonus (200) 200 TOTAL SCORE: 5962 Bonus ------- Entered Garrisons 200 Cogmind --------- Core Integrity 0/700 Matter 287/300 Energy 100/100 System Corruption 12% Temperature Cool (6) Movement Core (50) Location -7/Garrison Parts ------- > --- POWER (1) -------- (None) > --- PROPULSION (4) --- (None) > --- UTILITY (6) ------ Signal Interpreter Target Analyzer Hacking Suite > --- WEAPON (2) ------- (None) > --- INVENTORY (5) ---- Carbon-fiber Leg Improved Cesium-ion Thruster Small Storage Unit Improved Terrain Scanner Plasma Cannon Peak State ------------ > --- POWER ------------ Light Nuclear Core > --- PROPULSION ------- Titanium Leg VSS Leg VSS Leg VSS Leg > --- UTILITY ---------- Heat Sink Improved Heat Sink High-capacity Storage Unit Signal Interpreter Hacking Suite Hacking Suite > --- WEAPON ----------- Plasma Cannon Plasma Cannon > --- INVENTORY -------- Light Nuclear Core Light Nuclear Core Carbon-fiber Leg Carbon-fiber Leg Carbon-fiber Leg Carbon-fiber Leg Cesium-ion Thruster Improved Cesium-ion Thruster Improved Cesium-ion Thruster Improved Cesium-ion Thruster Improved Heat Sink Improved Heat Sink Small Storage Unit Sensor Array Improved Terrain Scanner Target Analyzer Propulsion Shielding Plasma Cannon Plasma Cannon Shock Bomb Launcher [Rating: 41] Favorites ----------- Power Light Ion Engine Engine Light Ion Engine Power Core Light Nuclear Core Propulsion Wheel Leg VSS Leg Wheel Wheel Utility Huge Storage Unit Device Heat Sink Storage Huge Storage Unit Processor Signal Interpreter Hackware Hacking Suite Protection Hardened Light Armor Plating Weapon Heavy Assault Rifle Energy Gun Small Laser Energy Cannon Plasma Cannon Ballistic Gun Heavy Assault Rifle Launcher Grenade Launcher Build | -11 -10 -9 -8 -7 -7 ------- Run | Jun Mat Mat Mat Fac Gar Slots Evolved 6 | . . 2 2 2 . Power . | . . . . . . Propulsion 2 | . . . . 2 . Utility 4 | . . 2 2 . . Weapon . | . . . . . . Parts Attached 87 | 12 15 20 29 11 . Power 13 | 1 2 2 6 2 . Engine 8 | 1 2 2 3 . . Core 5 | . . . 3 2 . Reactor . | . . . . . . Propulsion 26 | 6 6 4 6 4 . Treads . | . . . . . . Leg 6 | . . . 2 4 . Wheel 20 | 6 6 4 4 . . Hover . | . . . . . . Flight . | . . . . . . Utility 23 | 2 3 5 11 2 . Device 8 | . . 1 6 1 . Storage 4 | 2 1 . 1 . . Processor 4 | . 2 . 1 1 . Hackware 2 | . . . 2 . . Protection 5 | . . 4 1 . . Artifact . | . . . . . . Weapon 25 | 3 4 9 6 3 . Energy Gun 5 | 2 1 2 . . . Energy Cannon 5 | . . . 4 1 . Ballistic Gun 11 | 1 3 5 2 . . Ballistic Cannon . | . . . . . . Launcher 4 | . . 2 . 2 . Special Weapon . | . . . . . . Impact Weapon . | . . . . . . Slashing Weapon . | . . . . . . Piercing Weapon . | . . . . . . Special Melee Weapon . | . . . . . . Unidentified Prototypes . | . . . . . . Corrupted Parts 2 | 1 1 . . . . System Corruption 5 | 1 4 . . . . Parts Lost 49 | . 10 11 13 14 1 Power 9 | . 2 2 2 3 . Propulsion 21 | . 6 4 5 6 . Utility 9 | . . 2 3 3 1 Weapon 10 | . 2 3 3 2 . Highest Loss Streak 8 | . 3 4 6 8 1 To Critical Strikes 1 | . . . . 1 . Average Slot Usage (%) 93 | . 92 98 95 81 27 Engine 9 | . 14 10 5 . . Core 1 | . . . 3 4 . Leg 2 | . . . 1 22 . Wheel 20 | . 27 21 15 . . Device 6 | . . 1 17 13 4 Storage 10 | . 14 11 9 4 . Processor 12 | . 12 11 14 11 15 Hackware 2 | . . . 6 10 7 Protection 6 | . . 20 3 . . Energy Gun 2 | . 1 5 . . . Energy Cannon 2 | . . . 6 9 . Ballistic Gun 14 | . 21 15 11 . . Naked Turns . | . . . . . . Heaviest Build 101 | 13 85 97 101 61 1 Greatest Support 56 | 26 20 32 32 56 3 Greatest Overweight (x) 9 | . 4 9 5 1 . Average Overweight (x) 2 | . 3 2 2 . . Largest Inventory Capacity 25 | 8 25 25 25 20 5 Average Capacity 22 | 7 22 25 22 15 5 Most Carried 25 | 8 25 25 25 20 5 Average Carried 18 | 4 15 22 21 14 5 Final Capacity 25 | 8 25 25 20 5 5 Final Carried 25 | 8 22 25 20 5 5 Class Distribution -------------------- 74% | Scavenger-Mutant 25% | Mutant Dominant Class ---------------- Scavenger-Mutant | -10/Materials Mutant | -9/Materials Scavenger-Mutant | -8/Materials Scavenger-Mutant | -7/Factory Mutant | -7/Garrison Resources | -11 -10 -9 -8 -7 -7 ----------- Run | Jun Mat Mat Mat Fac Gar Matter Collected 1851 | 332 378 523 527 91 . Remotely . | . . . . . . Salvage Created 3658 | 162 863 1111 1324 198 . Parts 186 | 14 52 60 54 6 . Haulers Intercepted 2 | . 2 . . . . Recyclers Shooed 5 | . 2 2 . 1 . Parts Field Recycled . | . . . . . . Retrieved Matter . | . . . . . . Parts Self-Destructed . | . . . . . . Prevented . | . . . . . . Kills | -11 -10 -9 -8 -7 -7 ------- Run | Jun Mat Mat Mat Fac Gar Combat Hostiles Destroyed 66 | . 18 22 23 3 . Guns 46 | . 18 14 14 . . Cannons 11 | . . . 8 3 . AOE 7 | . . 7 . . . Classes Destroyed 13 | 3 5 2 1 2 . Worker 11 | 1 3 5 1 1 . Builder 1 | . . . . 1 . Tunneler 3 | 3 . . . . . Hauler 2 | . 2 . . . . Recycler 5 | 1 . 3 1 . . Operator 3 | . 2 . 1 . . Watcher 4 | . 3 . 1 . . Swarmer 13 | . 6 7 . . . Grunt 37 | . 12 8 15 2 . Brawler 1 | . . . . 1 . Duelist 2 | . . 1 1 . . Sentry 11 | . . 6 5 . . Hunter 2 | . . . 2 . . Best Kill Streak 7 | 4 4 5 7 3 . Combat Bots Only 5 | . 4 4 5 2 . Max Kills in Single Turn 3 | 1 2 3 2 3 . Gunslinging 1 | . 1 . 1 . . Exploded 3 | . . 3 . . . Melee . | . . . . . . Uniques/NPCs Destroyed . | . . . . . . Combat | -11 -10 -9 -8 -7 -7 -------- Run | Jun Mat Mat Mat Fac Gar Damage Taken 5729 | 28 1058 1264 1536 1545 298 Core 1561 | . 184 345 326 440 266 Absorbed by Shields 26 | . . . . . 26 Redirected to Shielding 30 | . . 30 . . . Core Remaining (%) 44 | 100 26 13 40 . . Volleys Fired 316 | 11 120 93 77 15 . Largest 2 | 2 2 2 2 2 . Hottest 160 | 80 60 80 160 160 . Shots Fired 596 | 22 206 186 153 29 . Gun 510 | 22 206 183 99 . . Cannon 77 | . . . 54 23 . Launcher 9 | . . 3 . 6 . Special . | . . . . . . Kinetic 392 | 4 179 110 99 . . Thermal 181 | 11 20 73 54 23 . Explosive 3 | . . 3 . . . Electromagnetic 20 | 7 7 . . 6 . Robot Hit Streak 25 | 5 15 14 25 9 . Robot Miss Streak 6 | 2 6 5 2 2 . Penetration Max 1 | . . . 1 . . Secondary Targets 6 | . 5 . 1 . . Max Gunslinging Chain 1 | . 1 . 1 . . Shots Hit Robots 407 | 15 131 121 121 19 . Core Hits 172 | 4 55 47 50 16 . Critical Kills 3 | . 1 . 2 . . Critical Parts Destroyed 4 | . 1 1 2 . . Critical Strikes 8 | 1 2 1 4 . . Meltdown 1 | . . . 1 . . Destroy 6 | . 2 1 3 . . Corrupt 1 | 1 . . . . . Melee Attacks . | . . . . . . Impact . | . . . . . . Slashing . | . . . . . . Piercing . | . . . . . . Sneak Attacks . | . . . . . . Combat Hostiles . | . . . . . . Follow-up Attacks . | . . . . . . Damage Inflicted 6579 | 207 1126 1976 2490 757 23 Guns 4333 | 180 1126 1619 1408 . . Cannons 1509 | . . . 1082 427 . Explosions 714 | 27 . 357 . 330 . Melee . | . . . . . . Ramming 23 | . . . . . 23 Kinetic 3386 | 12 947 1019 1408 . . Thermal 2406 | 107 134 600 1082 483 . Explosive 357 | . . 357 . . . Electromagnetic 407 | 88 45 . . 274 . Impact . | . . . . . . Slashing . | . . . . . . Piercing . | . . . . . . Highest Corruption 12 | 1 5 . 1 12 12 Average Corruption 4 | 1 4 . 1 11 12 Corruption Purged . | . . . . . . Corruption Blocked . | . . . . . . Effects 53 | 1 39 . 2 10 1 Message Errors 10 | . 5 . . 5 . Matter Fused 11 | . 8 . 1 2 . Heat Flow Errors 7 | 1 5 . . 1 . Energy Discharges 12 | . 11 . . . 1 Parts Rejected 1 | . 1 . . . . Parts Fused 1 | . 1 . . . . Data Loss (minor) 7 | . 4 . 1 2 . Data Loss (major) 3 | . 3 . . . . Misfires 1 | . 1 . . . . Overload Shots . | . . . . . . Overflow Damage 84 | 21 . 28 33 2 . Projectiles 35 | . . . 33 2 . Explosions 49 | 21 . 28 . . . Melee . | . . . . . . Knockbacks . | . . . . . . Impact . | . . . . . . Kinetic . | . . . . . . Secondary . | . . . . . . Self-Inflicted Damage 71 | 28 . 31 . 1 11 Shots 4 | 1 . 2 . 1 . Rammed 4 | . . . . . 4 Targets Rammed 4 | . . . . . 4 Kicked . | . . . . . . Crushed . | . . . . . . Highest Temperature 419 | 102 243 210 394 419 . Average Temperature 76 | 41 37 60 143 131 . Received Heat Transfer 1939 | . 375 483 363 615 103 Effects 3 | . . . 3 . . Shutdowns 2 | . . . 2 . . Interference 1 | . . . 1 . . Siege Activations . | . . . . . . Robots Corrupted . | . . . . . . Combat Hostiles . | . . . . . . Parts Fried . | . . . . . . Impact Corruptions . | . . . . . . Robots Melted 2 | . . 1 1 . . Combat Hostiles 2 | . . 1 1 . . Parts Melted 8 | . . 1 4 3 . Heat Transferred 4925 | 225 300 1350 2100 950 . Parts Sabotaged . | . . . . . . Parts Stolen . | . . . . . . Parts Stripped . | . . . . . . Power Chain Reactions 2 | 1 . . . 1 . Missiles Intercepted . | . . . . . . Alert | -11 -10 -9 -8 -7 -7 ------- Run | Jun Mat Mat Mat Fac Gar Peak Influence 405 | 25 303 387 405 264 45 Initial 179 | . 16 50 115 179 30 Average 203 | 11 199 205 240 201 34 Maximum Alert Level 2 | . 1 1 2 1 . Low Security (%) 48 | 100 47 51 33 54 100 Level 1 50 | . 52 48 60 45 . Level 2 1 | . . . 5 . . Level 3 . | . . . . . . Level 4 . | . . . . . . Level 5 . | . . . . . . High Security . | . . . . . . Max Security . | . . . . . . Squads Dispatched 13 | . 4 . 8 1 . Investigation 4 | . 2 . 2 . . Extermination . | . . . . . . Reinforcement 6 | . 2 . 3 1 . Assault . | . . . . . . Garrison 3 | . . . 3 . . Intercept . | . . . . . . Searches Triggered . | . . . . . . Construction Impeded 1 | . . . . 1 . Haulers Reinforced . | . . . . . . Active Scanning Responses . | . . . . . . Cargo Convoy Interrupts . | . . . . . . Stealth | -11 -10 -9 -8 -7 -7 --------- Run | Jun Mat Mat Mat Fac Gar Distress Signals 7 | . 2 . 3 2 . Communications Jammed . | . . . . . . Distress Signals . | . . . . . . Times Spotted 117 | . 37 28 30 12 10 Peak Tracking Total 18 | . 9 5 4 6 18 Tactical Retreats 11 | . 7 . 2 2 . Traps | -11 -10 -9 -8 -7 -7 ------- Run | Jun Mat Mat Mat Fac Gar Traps Triggered 7 | . 3 . 2 1 1 Indirectly 1 | . . . . 1 . Trap Hack Attempts . | . . . . . . Triggered . | . . . . . . Disarmed . | . . . . . . Reprogrammed . | . . . . . . Reused . | . . . . . . Traps Extracted . | . . . . . . Installed . | . . . . . . Triggered . | . . . . . . Machines | -11 -10 -9 -8 -7 -7 ---------- Run | Jun Mat Mat Mat Fac Gar Machines Disabled 2 | . . . 2 . . Max in Single Turn 1 | . . . 1 . . Machines Repaired . | . . . . . . Machines Sabotaged . | . . . . . . Overloaded Fab Kills . | . . . . . . Hacking | -11 -10 -9 -8 -7 -7 --------- Run | Jun Mat Mat Mat Fac Gar Machines Accessed 24 | . 7 7 6 4 . Terminals 19 | . 7 6 3 3 . Fabricators . | . . . . . . Repair Stations 2 | . . . 2 . . Recycling Units 1 | . . . 1 . . Scanalyzers 1 | . . 1 . . . Garrison Access 1 | . . . . 1 . Total Hacks 60 | . 19 21 16 4 . Successful 21 | . 5 11 2 3 . Failed 38 | . 13 10 14 1 . Catastrophic 13 | . 3 5 4 1 . Database Lockouts 1 | . 1 . . . . Manual 34 | . 11 12 10 1 . Terminals 48 | . 19 16 10 3 . Fabricators . | . . . . . . Repair Stations 3 | . . . 3 . . Recycling Units 3 | . . . 3 . . Scanalyzers 5 | . . 5 . . . Garrison Access 1 | . . . . 1 . Terminal Hacks 14 | . 5 6 1 2 . Part Schematic 6 | . 1 4 1 . . Prototype ID Bank 4 | . 2 2 . . . Open DSF 2 | . . . . 2 . Alert Level 1 | . 1 . . . . Unreport Threat 1 | . 1 . . . . Fabricator Hacks . | . . . . . . Repair Station Hacks . | . . . . . . Recycling Unit Hacks 1 | . . . 1 . . Process 1 | . . . 1 . . Scanalyzer 5 | . . 5 . . . Insert Component 2 | . . 2 . . . Analyze 3 | . . 3 . . . Garrison Access Hacks 1 | . . . . 1 . Unlock Access 1 | . . . . 1 . Unauthorized Hacks . | . . . . . . Terminals . | . . . . . . Fabricators . | . . . . . . Repair Stations . | . . . . . . Recycling Units . | . . . . . . Scanalyzers . | . . . . . . Garrison Access . | . . . . . . Data Cores Recovered . | . . . . . . Used . | . . . . . . Hacking Detections 21 | . 7 7 5 2 . Full Trace Events 5 | . 2 2 1 . . Feedback Events 1 | . . . 1 . . Corruption 1 | . . . 1 . . Feedback Blocked . | . . . . . . Robot Schematics Acquired . | . . . . . . Robots Built . | . . . . . . Authchips . | . . . . . . Time . | . . . . . . Total Robot Build Rating . | . . . . . . Part Schematics Acquired 8 | . 1 6 1 . . Parts Built . | . . . . . . Authchips . | . . . . . . Time . | . . . . . . Total Part Build Rating . | . . . . . . Parts Repaired . | . . . . . . Time . | . . . . . . Parts Recycled . | . . . . . . Recycled Matter 358 | . . . 358 . . Retrieved Matter . | . . . . . . Retrieved Components . | . . . . . . Parts Scanalyzed 2 | . . 2 . . . Part Schematics Acquired 2 | . . 2 . . . Parts Damaged . | . . . . . . Bothacking | -11 -10 -9 -8 -7 -7 ------------ Run | Jun Mat Mat Mat Fac Gar Used RIF Installer . | . . . . . . Robots Hacked . | . . . . . . Non-combat . | . . . . . . Combat . | . . . . . . Robot Hacks Applied . | . . . . . . Relay Couplers Released . | . . . . . . Fabnet Peak Effective % . | . . . . . . Robots Rewired . | . . . . . . Allies Hacked . | . . . . . . Hacks Repelled . | . . . . . . Allies | -11 -10 -9 -8 -7 -7 -------- Run | Jun Mat Mat Mat Fac Gar Total Allies . | . . . . . . Largest Group . | . . . . . . Highest-Rated Group . | . . . . . . Highest-Rated Ally . | . . . . . . Total Orders . | . . . . . . Ally Attacks . | . . . . . . Total Damage . | . . . . . . Kills . | . . . . . . Allies Corrupted . | . . . . . . Allies Melted . | . . . . . . Intel | -11 -10 -9 -8 -7 -7 ------- Run | Jun Mat Mat Mat Fac Gar Robot Analysis Total . | . . . . . . Derelict Logs Recovered . | . . . . . . Drone Launches . | . . . . . . Drone Recoveries . | . . . . . . Exploration | -11 -10 -9 -8 -7 -7 ------------- Run | Jun Mat Mat Mat Fac Gar Turns Passed 4437 | 144 1572 1213 1070 400 38 Spaces Moved 2429 | 97 827 596 512 332 65 Core 285 | 1 . . . 219 65 Treads . | . . . . . . Legs 134 | . . . 21 113 . Wheels 2010 | 96 827 596 491 . . Hover . | . . . . . . Flight . | . . . . . . Fastest Speed 50 | 50 80 130 110 50 50 Average Speed 124 | 89 128 138 135 95 50 Slowest Speed 270 | 100 140 215 270 187 50 Overloaded Moves . | . . . . . . Propulsion Burnouts . | . . . . . . Robots Hopped . | . . . . . . Cave-ins Triggered . | . . . . . . Exploration Rate (%) 35 | 5 93 44 41 13 15 Regions Visited 5 Branch Regions . Pre-discovered Areas . | . . . . . . Known Exits Taken 4 | . 1 1 1 1 . Unknown Exits Taken 1 | 1 . . . . . Scrap Searched . | . . . . . . Spaces Dug . | . . . . . . Terrain Destroyed 44 | 2 . 27 10 5 . Melee . | . . . . . . Projectile 10 | . . . 10 . . AOE 34 | 2 . 27 . 5 . Terrain Rammed . | . . . . . . Walls Destroyed . | . . . . . . Machines Disabled . | . . . . . . Actions | -11 -10 -9 -8 -7 -7 --------- Run | Jun Mat Mat Mat Fac Gar Total 3302 | 135 1169 800 743 385 70 Wait 327 | . 172 64 67 24 . Move 2424 | 96 826 595 511 331 65 Hop . | . . . . . . Pick Up 93 | 9 30 21 31 2 . Fast Attach 13 | 7 1 1 4 . . Attach 49 | . 11 13 16 9 . Detach 3 | 1 . 1 1 . . Swap 25 | 5 3 6 9 2 . Drop 47 | 6 6 6 27 2 . Fire 316 | 11 120 93 77 15 . Melee . | . . . . . . Ram 4 | . . . . . 4 Kick . | . . . . . . Crush . | . . . . . . Escape Stasis 1 | . . . . . 1 Rewire . | . . . . . . Trap . | . . . . . . Miscellaneous . | . . . . . . Route ------- -11/Junkyard -10/Materials (discovered 5 exits: *Mat x3 / [*Min x2]) -9/Materials (discovered 2 exits: *Mat / *Min) -8/Materials (discovered 2 exits: *Fac x2) -7/Factory (discovered 2 exits: *Fac / Gar) -7/Garrison History --------- Turn | Location | Event 26 | -11/Junkyard | Discovered new exit (range 13) 145 | -11/Junkyard | Entered Materials 152 | -10/Materials | Discovered new exit (range 16) 180 | -10/Materials | Discovered new exit (range 12) 311 | -10/Materials | Build established: Mutant 695 | -10/Materials | Discovered new exit (range 8) 696 | -10/Materials | Lost 3 parts (1p2n) 727 | -10/Materials | Build established: Scavenger-Mutant 900 | -10/Materials | Core integrity fell below 50% 940 | -10/Materials | Discovered new exit (range 13) 1411 | -10/Materials | Central database locked down 1651 | -10/Materials | Discovered new exit (range 5) 1658 | -10/Materials | Identified exit to Materials 1717 | -10/Materials | Entered another Materials area 1717 | -9/Materials | Evolved 2 slots: Utility x2 2196 | -9/Materials | Discovered new exit (range 7) 2202 | -9/Materials | Identified exit to Materials 2368 | -9/Materials | Discovered new exit (range 11) 2382 | -9/Materials | Core integrity fell below 50% 2391 | -9/Materials | Build established: Mutant 2400 | -9/Materials | Identified exit to Mines 2711 | -9/Materials | Core integrity fell below 20% 2754 | -9/Materials | Lost 4 parts (1p2n1w) 2930 | -9/Materials | Entered another Materials area 2930 | -8/Materials | Evolved 2 slots: Utility x2 3024 | -8/Materials | Build established: Scavenger-Mutant 3360 | -8/Materials | Lost 5 parts (1p2n1u1w) 3437 | -8/Materials | Discovered new exit (range 14) 3459 | -8/Materials | Identified exit to Factory 3516 | -8/Materials | Garrison activated, responded to threat 3631 | -8/Materials | Lost 6 parts (1p2n1u2w) 3844 | -8/Materials | Core integrity fell below 50% 3894 | -8/Materials | Discovered exit to Factory (range 16) 4000 | -8/Materials | Entered Factory 4000 | -7/Factory | Evolved 2 slots: Propulsion x2 4025 | -7/Factory | Identified exit to DSF 4198 | -7/Factory | System corruption reached 10% 4228 | -7/Factory | Lost 3 parts (1p2u) 4314 | -7/Factory | Lost 8 parts (2p4n2w) 4343 | -7/Factory | Core integrity fell below 50% 4349 | -7/Factory | Discovered new exit (range 6) 4350 | -7/Factory | Identified exit to Factory 4384 | -7/Factory | Lost 3 parts (2n1u) 4400 | -7/Factory | Identified exit to Garrison 4400 | -7/Factory | Entered Garrison 4424 | -7/Garrison | Core integrity fell below 20% 4426 | -7/Garrison | Triggered checkpoint 4438 | -7/Garrison | Destroyed by G-47 Trooper with Particle Gun Last Messages --------------- 04362_ F7#71KAGBD KM=K,J CR&2 04366_ Connecting with DSF Access... 04400_ System corrupted: Heat flow error (+294). 04400_ Connecting with Garrison Access... >>Unlock Access door unlocked. 04400_ EXIT=UNLOCKED: GARRISON LOCATION=GARRISON GOAL=ESCAPE 04410_ ALERT: Dispatching investigation squad to Factory. 04421_ Slammed into Y-54 Guardian. 04421_ Imp. Heat Sink destroyed. 04422_ Slammed into Y-54 Guardian. 04423_ Slammed into G-47 Trooper. 04425_ System corrupted: Energy discharge (-35). 04426_ Beams of light sweep through the air. An alarm sounds. 04437_ Triggered Stasis Trap. 04437_ A bubble of rippling energy engulfs the area. 04437_ Field strength at 94. 04437_ Field strength at 78. Map ----- +----------------------------------------------------+ | ?????????????????????????????????????????????????? | | ?????????????????????????????????????????????????? | | ?????????????????????????????????????????????????? | | ?????????????????????????????????????????????????? | | ?????????????????????????????????????????????????? | | ?????????????????????????????????????????????????? | | ?????????????????????????????????????????????????? | | ?????????????????????????????????????????????????? | | ?????????????????????????????????????????????????? | | ?????????????????????????????????????????????????? | | ?????????????????????????????????????????????????? | | ?????????????????????????????????????????????????? | | ?????????????????????????????????????????????????? | | ?????????????????????????????????????????????????? | | ?????????????????????????????????????????????????? | | ?????????????????????????????????????????????????? | | ?????????????????????????????????????????????????? | | ?????????????????????????????????????????????????? | | ?????????????????????????????????????????????????? | | ?????????????????????????????????????????????????? | | ?????????????????????????????????????????????????? | | ?????????????????????????????????????????????????? | | ?????????????????????????????????????????????????? | | ?????????????????????????????? #?????????????????? | | ?????????????????###########g g## #???????????? | | ?????????????????# @ g ????????? | | ???#######???????# g ????????? | | ???#]] !!#???????# #####Y## l ????????? | | ???#]] !!#???????# #???# ?? ##""""###?????????? | | ???### ###???????# #???# ##?? #?????????????????? | | ?????# #?????????# #??? #??????????????????????? | | ?????# #?????????# #???# ??????????????????????? | | ?????# #########?# #???# #??????????????????????? | | ?????# + # #?# #???# #??????????????????????? | | ???### ##### ### ######### #?????????????????? | | ???# + #?????????????????? | | ???# + #?????????????????? | | ???#####+######### ##########???????????????????? | | ???????# #???????# #????????????????????????????? | | ???????# #???????# #????????????????????????????? | | ???????# #???????# #????????????????????????????? | | ???????# #???????# #????????????????????????????? | | ???????# ???????# #####????????????????????????? | | ???????# ???????# #!!!#????????????????????????? | | ????????##???????# #????????????????????????? | | ?????????????????# #!!!#????????????????????????? | | ?????????????????# #####????????????????????????? | | ????????########## #????????????????????????????? | | ????????# #????????????????????????????? | | ????????# #????????????????????????????? | +----------------------------------------------------+ Best States ------------- Heat Dissipation 58 Energy Generation 14 Energy Capacity 265 Matter Stores 300 Matter Capacity 300 Sight Range 18 Terrain Scan Density 10 Armor Coverage 300 Propulsion Shielding 33 Evasion (%) 50 Targeting Accuracy 8 Target Analysis 5 Offensive Hacking 20 Item Schematics ----------------- Signal Interpreter | -10/Materials | Hacked Imp. Aluminum Leg | -9/Materials | Hacked Imp. Treads | -9/Materials | Hacked Arm. Wheel | -9/Materials | Hacked Imp. Hover Unit | -9/Materials | Hacked Lgt. Nuclear Core | -9/Materials | Scanalyzed Hacking Suite | -9/Materials | Scanalyzed Cesium-ion Thruster | -8/Materials | Hacked Robot Schematics ------------------ None Fabricated ------------ Nothing Alien Tech Used ----------------- None Achievements -------------- None Challenges ------------ None Game ------ Seed DroneDeuteriumLoader Manual? 0 Play Time 01:02:53 Cumulative 85.0 hours Start 2023.09.08 @ 23:07:12 End 2023.09.10 @ 16:44:59 Sessions 2 Manual Loads 0 Difficulty Rogue Special Mode None Game No. 55 Rogue 55 Adventurer 0 Explorer 0 Win Type - Total 0 Types 0/0/0/0/0/0/0/0/0 Lore% 36 Gallery% 39 Achievement% 33 Wizard Run 0 Options --------- ASCII 0 Keyboard 1 Movement Vi Keybinds 0 Fullscreen 2 Font 18/SmallcapsGlow Map View 76x50 Tactical HUD 1 Map Filters NONE Filters NONE Steam 1 RUN: 952456a6-efa7-4401-9f26-34a8375cdd5d